bitfinex-derivatives/quotes_ETHF0:USTF0_20250220
["timestamp","ask_amount","ask_price","bid_price","bid_amount"]
[1740073043622,1.84794,2737.9,2737.7,0.00552049]
[1740073043623,1.1176,2737.9,2737.7,0.00552049]
[1740073043822,0.73043,2737.5,2737.4,3.2078]
[1740073044021,0.73043,2737.5,2737.4,3.74401885]
[1740073044925,1.1176,2737.9,2737.4,3.74401885]
[1740073045121,0.73043,2737.5,2737.4,3.2078]
[1740073045322,0.73043,2737.5,2737.4,3.74414263]
[1740073045523,0.73043,2737.5,2737.4,3.74966312]
[1740073046027,0.73043,2737.5,2737.4,0.53634263]
[1740073046228,3.2078,2737.7,2737.3,0.00547915]
[1740073046526,1.86035,2737.4,2737.3,0.00547915]
[1740073047922,5.06815,2737.4,2737.3,0.00547915]
[1740073049324,10.3377,2737.4,2736.6,3.2078]
[1740073049520,0.73061,2736.8,2736.7,0.53636512]
[1740073049824,0.73064,2736.7,2736.6,3.21332049]
[1740073050030,0.73064,2736.7,2736.6,3.7497859]
[1740073050330,0.73064,2736.7,2736.6,3.21332049]
[1740073050527,0.73073,2736.4,2736.2,3.2078]
[1740073050830,0.73067,2736.6,2736.5,0.00552049]
[1740073051033,0.73069,2736.5,2736.4,0.00547915]
[1740073051229,3.7602,2736.8,2736.5,0.00552049]
[1740073051430,0.73068,2736.6,2736.5,0.00552049]
[1740073051629,0.73069,2736.5,2736.4,0.00547915]
[1740073053526,3.93849,2736.5,2736.4,0.00547915]
[1740073059541,0.73083,2736.0,2735.9,3.2078]
[1740073059841,0.73083,2736.0,2735.9,3.21332049]
[1740073060041,0.73083,2736.0,2735.9,3.2078]
[1740073061833,0.73088,2735.8,2735.7,0.00547915]
[1740073062938,0.73088,2735.8,2735.7,0.01099964]
[1740073064231,1.28698,2735.8,2735.7,0.00547915]
[1740073065940,0.73104,2735.2,2735.1,3.2078]
[1740073066247,0.73102,2735.3,2735.2,0.00552049]
[1740073067447,0.5545,2735.3,2735.0,0.00547915]
[1740073067640,0.73104,2735.2,2735.1,0.00552049]
[1740073067945,0.5545,2735.3,2735.1,0.73658049]
[1740073068141,1.28552,2735.3,2735.2,0.00552049]
[1740073068540,0.73104,2735.2,2735.1,0.73106]
[1740073069146,0.73104,2735.2,2735.1,0.00552049]
[1740073069541,0.5545,2735.3,2735.0,0.00547915]
[1740073069740,0.73104,2735.2,2735.1,0.00552049]
[1740073069944,0.73107,2735.1,2735.0,0.00547915]
[1740073070246,3.21007,2735.1,2735.0,0.00547915]
[1740073070943,0.73125,2734.5,2734.3,4.53029779]
[1740073071237,3.2078,2734.9,2734.7,0.00552049]
[1740073071443,0.73115,2734.8,2734.7,0.00552049]
[1740073071646,3.7843,2734.9,2734.4,0.73125]
[1740073071839,0.73115,2734.8,2734.7,0.00552049]
[1740073072041,0.73118,2734.7,2734.6,0.00552049]
[1740073072341,0.5736,2734.7,2734.4,0.00365278]
[1740073072547,0.5736,2734.7,2734.4,0.00917327]
[1740073072548,0.73123,2734.5,2734.4,0.00917327]
[1740073072747,0.73123,2734.5,2734.4,0.00365278]
[1740073072949,0.73123,2734.5,2734.4,0.00917327]
[1740073073947,0.73123,2734.5,2734.4,0.00365278]
[1740073074547,0.5861,2734.6,2734.4,0.00917327]
[1740073074747,0.73123,2734.5,2734.4,0.00917327]
[1740073075147,0.5861,2734.6,2734.5,0.73123]
[1740073075345,1.3173,2734.6,2734.5,1.32463]
[1740073075652,5.424,2734.8,2734.6,0.73118]
[1740073075846,0.73118,2734.7,2734.6,0.73118]
[1740073076048,0.7312,2734.6,2734.5,0.5934]
[1740073078352,0.7312,2734.6,2734.5,0.59892049]
[1740073078756,0.72997903,2734.6,2734.5,0.59892049]
[1740073079358,2.472,2734.8,2734.5,0.59892049]
[1740073079558,2.472,2734.8,2734.6,0.00552049]
[1740073079758,0.7312,2734.7,2734.6,0.00552049]
[1740073080063,0.7312,2734.6,2734.5,0.5934]
[1740073080561,2.472,2734.8,2734.4,0.00365278]
[1740073080765,1.29843,2734.5,2734.4,0.00365278]
[1740073081155,1.29843,2734.5,2734.4,0.00917327]
[1740073081362,1.29843,2734.5,2734.4,0.74043327]
[1740073081558,2.472,2734.8,2734.4,0.00917327]
[1740073081757,3.2078,2734.9,2734.8,0.73115]
[1740073082066,5.6818,2735.3,2734.8,0.00552049]
[1740073082264,5.6818,2735.3,2735.1,0.00552049]
[1740073082463,0.73104,2735.2,2735.1,0.00552049]
[1740073082865,1.7504,2735.4,2735.1,0.00552049]
[1740073083167,0.00547915,2735.5,2735.3,0.00552049]
[1740073083466,0.73099,2735.4,2735.2,0.73103]
[1740073083670,0.73644915,2735.5,2735.4,0.00552049]
[1740073084665,0.00547915,2735.5,2735.4,0.73651049]
[1740073084867,0.00547915,2735.5,2735.4,0.00552049]
[1740073085061,0.00547915,2735.5,2735.4,1.30581049]
[1740073085259,0.73643915,2735.5,2735.4,0.57482049]
[1740073085471,0.00547915,2735.5,2735.4,1.30581049]
[1740073086763,0.00547915,2735.5,2735.4,0.57482049]
[1740073086964,0.73643915,2735.5,2735.4,0.57482049]
[1740073087468,0.73643915,2735.5,2735.4,0.00552049]
[1740073089174,0.00547915,2735.5,2734.9,3.2078]
[1740073089473,0.73099,2735.4,2735.3,0.00552049]
[1740073089774,0.73104,2735.2,2735.1,0.00552049]
[1740073090168,0.7311,2735.0,2734.9,3.2078]
[1740073090363,0.73109,2735.1,2735.0,0.00552049]
[1740073091371,1.1266,2735.3,2735.0,0.00552049]
[1740073091576,0.00547915,2735.5,2735.2,0.00552049]
[1740073091770,0.00547915,2735.5,2734.9,3.2078]
[1740073091771,0.73645915,2735.5,2735.4,0.00552049]
[1740073092177,0.00547915,2735.5,2735.4,0.73651049]
[1740073092370,0.00547915,2735.5,2735.4,1.29191049]
[1740073093369,0.00547915,2735.5,2735.4,0.56092049]
[1740073093570,0.73643915,2735.5,2735.4,0.56092049]
[1740073093775,0.73643915,2735.5,2735.4,1.29191049]
[1740073094172,0.00547915,2735.5,2735.4,1.29191049]
[1740073094572,0.73643915,2735.5,2735.4,0.00552049]
[1740073096172,0.00547915,2735.5,2735.3,0.5913]
[1740073096372,0.73099,2735.4,2735.3,0.59682049]
[1740073098980,0.00547915,2735.5,2735.4,0.73099]
[1740073099282,0.00547915,2735.5,2735.4,0.73651049]
[1740073099283,0.73643915,2735.5,2735.4,0.73651049]
[1740073099474,0.73643915,2735.5,2735.4,0.73099]
[1740073099669,0.73099,2735.4,2735.3,1.3223]
[1740073100070,0.73099,2735.4,2735.3,1.32782049]
[1740073100870,0.73099,2735.4,2735.3,0.59682049]
[1740073101073,5.03528,2735.4,2734.7,44.5864]
[1740073101282,0.73114,2734.9,2734.8,3.74248457]
[1740073101482,1.82764,2735.2,2735.0,0.00552049]
[1740073101780,1.82764,2735.2,2734.8,0.00552049]
[1740073101781,0.73112,2734.9,2734.8,0.00552049]
[1740073101974,0.73115,2734.8,2734.7,0.00552049]
[1740073102374,0.5458,2734.9,2734.5,0.5912]
[1740073102579,0.73115,2734.8,2734.7,0.00552049]
[1740073102982,0.5458,2734.9,2734.5,0.5912]
[1740073103182,0.73118,2734.7,2734.5,1.32241]
[1740073103482,0.73115,2734.8,2734.7,0.00552049]
[1740073103884,0.73115,2734.8,2734.6,0.73119]
[1740073103885,0.5458,2734.9,2734.5,1.32242]
[1740073104076,0.73115,2734.8,2734.7,0.00552049]
[1740073104485,0.7312,2734.6,2734.5,0.5912]
[1740073104980,0.73123,2734.5,2734.4,0.00365278]
[1740073108283,3.93903,2734.5,2734.4,0.00365278]
[1740073109381,0.73123,2734.5,2734.4,0.00365278]
[1740073113189,3.93903,2734.5,2734.4,0.00365278]
[1740073113878,0.73139,2733.9,2733.8,0.5894]
[1740073114083,0.73139,2733.9,2733.8,0.59492049]
[1740073114283,0.73139,2733.9,2733.8,0.00552049]
[1740073115589,7.50328,2733.9,2733.3,3.2078]
[1740073115793,0.7316,2733.2,2733.1,0.591]
[1740073116186,0.7316,2733.2,2733.1,0.59652049]
[1740073117088,0.5822,2733.3,2733.2,0.73158]
[1740073117288,3.2078,2733.6,2733.2,0.00552049]
[1740073117486,3.93927,2733.6,2733.5,0.00552049]
[1740073117687,0.73155,2733.4,2733.2,0.73158]
[1740073118086,0.73155,2733.4,2733.3,0.00552049]
[1740073119082,3.2078,2733.6,2733.3,0.00552049]
[1740073119280,0.73146,2733.7,2733.5,0.73701049]
[1740073119490,0.73147,2733.6,2733.5,0.00552049]
[1740073119694,3.2078,2733.6,2733.1,0.591]
[1740073119993,0.5658,2733.5,2732.9,3.2078]
[1740073120292,0.7316,2733.1,2733.0,0.00552049]
[1740073120484,2.95862,2733.4,2733.1,0.00552049]
[1740073120681,0.73158,2733.2,2733.1,0.00552049]
[1740073120990,0.73163,2733.0,2732.9,3.2078]
[1740073121390,0.73163,2733.0,2732.9,3.94498049]
[1740073121792,0.73163,2733.0,2732.9,3.21332049]
[1740073122688,0.73162,2733.1,2732.9,3.21332049]
[1740073122891,1.1298,2733.4,2732.9,3.2078]
[1740073123197,1.1298,2733.4,2732.5,41.08926042]
[1740073123198,0.73174,2732.6,2732.5,0.73175]
[1740073123589,0.73174,2732.6,2732.5,0.00552049]
[1740073123891,1.27527,2732.9,2732.5,0.00552049]
[1740073124093,1.27528,2732.9,2732.8,0.00552049]
[1740073124291,3.2078,2733.2,2733.1,0.7316]
[1740073124492,3.93938,2733.2,2733.1,0.00552049]
[1740073124685,3.2078,2733.2,2732.6,3.2078]
[1740073124991,3.2078,2733.2,2733.1,0.00552049]
[1740073125294,0.7316,2733.2,2733.1,0.00552049]
[1740073125488,0.73162,2733.1,2732.9,0.73164]
[1740073125889,0.73162,2733.1,2733.0,0.00552049]
[1740073133895,0.73162,2733.1,2732.7,0.5583]
[1740073134095,0.73162,2733.1,2733.0,0.00552049]
[1740073134702,0.73168,2732.8,2732.7,1.29]
[1740073135101,0.73168,2732.8,2732.6,3.2078]
[1740073135102,0.73171,2732.7,2732.6,3.93954]
[1740073135293,0.5825,2732.7,2732.3,0.5721]
[1740073135496,1.143,2732.6,2732.3,0.5721]
[1740073135700,1.87474,2732.6,2732.5,0.00552049]
[1740073136203,0.73176,2732.5,2732.4,0.73178]
[1740073136703,0.73176,2732.5,2732.4,0.73730049]
[1740073138104,1.143,2732.6,2732.4,0.00552049]
[1740073138403,1.143,2732.6,2732.5,0.73728049]
[1740073138795,1.87474,2732.6,2732.5,0.73728049]
[1740073139199,1.143,2732.6,2732.5,0.73728049]
[1740073139511,0.00548938,2732.8,2732.7,0.73171]
[1740073139704,0.00548938,2732.8,2732.7,0.73723049]
[1740073140308,0.5649,2733.3,2732.7,0.54219499]
[1740073140505,0.73155,2733.3,2733.2,0.00552049]
[1740073141713,0.73153,2733.4,2733.3,0.73152]
[1740073141905,0.73154,2733.4,2733.3,1.27766049]
[1740073142210,0.73154,2733.4,2733.3,0.54612049]
[1740073144515,0.7316,2733.1,2733.0,0.00548938]
[1740073145108,3.018,2733.3,2733.0,0.00548938]
[1740073145310,2.461,2733.3,2733.2,0.00552049]
[1740073145510,0.73155,2733.3,2733.2,0.00552049]
[1740073145706,3.21328938,2733.5,2733.0,0.00548938]
[1740073145912,0.7316,2733.1,2733.0,0.01100987]
[1740073146315,1.2878,2733.1,2733.0,1.28101342]
[1740073146509,1.2878,2733.1,2733.0,0.54938342]
[1740073146816,1.2878,2733.1,2733.0,0.01100987]
[1740073147017,1.2878,2733.1,2733.0,0.00548938]
[1740073147517,1.2878,2733.1,2733.0,0.01100987]
[1740073148307,1.2878,2733.1,2733.0,0.54924286]
[1740073148512,1.2878,2733.1,2733.0,0.01100987]
[1740073149120,0.5562,2733.1,2733.0,0.74263987]
[1740073149314,0.5562,2733.1,2733.0,1.28070135]
[1740073149522,1.2878,2733.1,2733.0,1.28070135]
[1740073149813,0.5802,2733.2,2733.1,0.7316]
[1740073150008,0.73152,2733.4,2733.3,0.73155]
[1740073150210,0.73152,2733.4,2733.3,0.00552049]
[1740073150418,0.73155,2733.3,2733.2,0.73156]
[1740073150822,0.73155,2733.3,2733.2,1.2749277]
[1740073151210,0.73154,2733.4,2733.3,0.73153]
[1740073151512,0.73154,2733.4,2733.3,0.73705049]
[1740073151714,0.73157,2733.3,2733.2,0.73156]
[1740073151912,0.73157,2733.3,2733.2,1.26922508]
[1740073152116,0.73157,2733.3,2733.2,1.27474557]
[1740073153318,0.73157,2733.3,2733.2,0.73708049]
[1740073153520,0.73157,2733.3,2733.2,1.27470794]
[1740073154218,0.73157,2733.3,2733.2,0.73708049]
[1740073154815,0.73155,2733.4,2733.3,0.73152]
[1740073155019,0.73155,2733.4,2733.3,1.31804049]
[1740073155213,0.73155,2733.4,2733.3,1.31252]
[1740073155621,0.73155,2733.4,2733.3,0.581]
[1740073155923,0.73155,2733.4,2733.3,1.31255]
[1740073159716,0.73155,2733.4,2733.3,1.31807049]
[1740073160724,0.73155,2733.4,2733.3,0.58652049]
[1740073160920,0.73155,2733.4,2733.1,3.7933]
[1740073160921,1.8289,2733.3,2733.0,0.00548938]
[1740073161118,0.7316,2733.1,2733.0,0.01100987]
[1740073161319,0.7316,2733.1,2733.0,0.74263987]
[1740073163725,0.7316,2733.1,2733.0,0.01100987]
[1740073163921,0.7316,2733.1,2733.0,0.00548938]
[1740073164227,3.1786,2733.1,2733.0,0.00548938]
[1740073164424,1.82908,2733.0,2732.3,1.3104]
[1740073164625,0.73174,2732.6,2732.5,0.00552049]
[1740073164822,3.2078,2732.9,2732.2,3.2078]
[1740073165022,0.73182,2732.3,2732.2,3.2078]
[1740073165327,0.73182,2732.3,2731.4,1.83014]
[1740073165328,0.73189,2732.1,2731.8,3.2078]
[1740073165528,0.73189,2732.1,2732.0,0.00552049]
[1740073166019,0.5841,2732.2,2731.8,3.93975]
[1740073166221,0.73189,2732.1,2732.0,0.00552049]
[1740073166622,0.73189,2732.1,2731.8,3.2078]
[1740073166824,0.73189,2732.1,2732.0,0.00552049]
[1740073167325,0.5841,2732.2,2731.8,3.2078]
[1740073167822,0.5841,2732.2,2732.1,0.73739049]
[1740073168226,0.5841,2732.2,2732.1,0.73187]
[1740073168626,0.73188,2732.1,2731.9,0.7319]
[1740073169029,0.73188,2732.1,2732.0,0.73742049]
[1740073169229,0.73188,2732.1,2732.0,0.00552049]
[1740073169832,0.73193,2731.9,2731.8,3.2078]
[1740073170038,0.73193,2731.9,2731.8,3.21332049]
[1740073170332,0.73193,2731.9,2731.8,3.2078]
[1740073171034,0.5493,2732.0,2731.6,1.32759]
[1740073171333,0.5493,2732.0,2731.7,0.00552049]
[1740073171630,0.73198,2731.8,2731.7,0.00552049]
[1740073172024,0.5493,2732.0,2731.5,3.2078]
[1740073172231,0.73201,2731.6,2731.5,3.2078]
[1740073172531,0.73199,2731.7,2731.6,0.73751049]
[1740073172830,0.73195,2731.8,2731.7,0.00552049]
[1740073173224,0.73198,2731.7,2731.6,0.73198]
[1740073173424,0.5493,2732.0,2731.7,0.00552049]
[1740073173821,0.73194,2731.9,2731.8,0.73194]
[1740073174725,0.00548938,2732.1,2731.8,0.00552049]
[1740073174926,0.73737938,2732.1,2732.0,0.73742049]
[1740073175332,0.73737938,2732.1,2732.0,0.00552049]
[1740073182931,0.73198,2731.8,2731.7,0.73196]
[1740073183136,0.73198,2731.7,2731.6,0.58702049]
[1740073183329,1.30518,2731.7,2731.6,1.31351]
[1740073183725,1.30518,2731.7,2731.6,0.5815]
[1740073183933,0.73201,2731.6,2731.5,3.2078]
[1740073184236,1.86251,2731.6,2731.5,3.2078]
[1740073185141,0.73206,2731.4,2731.3,0.5434]
[1740073185340,0.73215,2731.1,2731.0,0.73215]
[1740073185540,0.73209,2731.3,2731.2,0.00552049]
[1740073185838,4.3383,2731.6,2731.2,0.00552049]
[1740073186039,1.1305,2731.6,2731.2,0.00552049]
[1740073186235,1.1305,2731.6,2731.3,0.00552049]
[1740073186539,1.1305,2731.6,2731.2,3.2078]
[1740073186540,3.2078,2731.9,2731.4,0.00552049]
[1740073186733,0.73201,2731.6,2731.5,0.73755049]
[1740073187246,0.73201,2731.7,2731.6,0.73199]
[1740073187434,0.73201,2731.7,2731.6,1.1626]
[1740073188935,0.73201,2731.7,2731.6,0.5958]
[1740073189433,0.73203,2731.5,2731.4,0.73205]
[1740073189636,0.73203,2731.5,2731.4,0.73757049]
[1740073190332,0.73206,2731.4,2731.3,0.5765]
[1740073190528,1.29626,2731.4,2731.3,0.5765]
[1740073190739,1.29626,2731.4,2731.3,0.58202049]
[1740073191940,1.29626,2731.4,2731.3,1.31411049]
[1740073192337,1.29626,2731.4,2731.3,0.00552049]
[1740073192939,0.73206,2731.4,2731.3,0.00552049]
[1740073193440,0.73206,2731.4,2731.3,0.73761049]
[1740073193636,0.73206,2731.4,2731.3,0.00552049]
[1740073193943,0.73206,2731.4,2731.3,0.73761049]
[1740073194537,0.73206,2731.4,2731.3,0.00552049]
[1740073194735,0.73206,2731.4,2731.3,0.73761049]
[1740073195136,0.73206,2731.4,2731.3,0.00552049]
[1740073195343,0.73206,2731.4,2731.3,0.73761049]
[1740073196838,0.5532,2731.6,2731.3,0.00552049]
[1740073197046,0.73205,2731.5,2731.4,1.30663]
[1740073197640,0.73205,2731.5,2731.4,1.31215049]
[1740073199438,0.73205,2731.5,2731.4,1.85078345]
[1740073199852,0.5901,2731.7,2731.4,1.11875345]
[1740073200146,0.73201,2731.6,2731.5,0.73753049]
[1740073200449,0.73201,2731.6,2731.5,1.28763049]
[1740073203844,0.73206,2731.4,2731.3,0.73208]
[1740073204044,0.73206,2731.4,2731.3,1.27040844]
[1740073204257,0.73206,2731.4,2731.3,1.27592893]
[1740073205150,1.30995,2731.5,2731.4,0.73206]
[1740073205344,1.30995,2731.5,2731.4,1.2759247]
[1740073205551,1.30995,2731.5,2731.4,0.73758049]
[1740073206537,0.73219,2731.0,2730.9,3.93998]
[1740073206743,0.73219,2731.0,2730.9,4.47836884]
[1740073206947,0.73219,2731.0,2730.9,1.27609933]
[1740073207146,0.73219,2731.0,2730.9,0.54390933]
[1740073207346,0.73219,2731.0,2730.9,0.00552049]
[1740073207541,0.73219,2731.0,2730.9,0.54396814]
[1740073207746,0.73219,2731.0,2730.9,1.27615814]
[1740073208350,0.73219,2731.0,2730.9,0.54396814]
[1740073208649,0.73219,2731.0,2730.9,0.53844765]
[1740073209147,0.73219,2731.0,2730.9,1.08394765]
[1740073209455,0.73219,2731.0,2730.9,1.08947302]
[1740073209649,0.73219,2731.0,2730.9,1.82166302]
[1740073209849,0.5577,2731.2,2730.9,1.08947302]
[1740073210052,0.73216,2731.1,2731.0,0.00552049]
[1740073210353,0.73214,2731.2,2731.1,0.00552049]
[1740073210752,0.73214,2731.2,2731.1,0.73766049]
[1740073210946,0.5759,2731.4,2731.1,0.54392532]
[1740073211146,0.73209,2731.4,2731.3,0.73759049]
[1740073211350,0.73209,2731.4,2731.3,1.27583195]
[1740073211549,1.86884,2731.5,2731.4,0.73206]
[1740073211853,0.73203,2731.5,2731.4,0.73758049]
[1740073212450,0.73203,2731.5,2731.4,0.00552049]
[1740073212947,0.73203,2731.5,2731.4,0.73758049]
[1740073213250,0.73203,2731.5,2731.4,1.27603027]
[1740073213449,0.73203,2731.5,2731.4,1.27612543]
[1740073213654,0.73203,2731.5,2731.4,1.2760979]
[1740073213949,3.5838,2731.9,2731.4,0.5440379]
[1740073214155,0.73202,2731.6,2731.5,1.14029464]
[1740073214552,1.1478,2731.9,2731.7,0.73197]
[1740073214753,1.1478,2731.9,2731.8,0.73747049]
[1740073215148,1.87973,2731.9,2731.8,0.00552049]
[1740073216651,1.1478,2731.9,2731.6,0.5373]
[1740073216952,6.18548,2731.9,2731.4,3.2078]
[1740073217155,0.73201,2731.6,2731.5,0.00552049]
[1740073219851,0.73201,2731.6,2731.5,0.54408257]
[1740073220058,0.73201,2731.6,2731.5,0.54411734]
[1740073221651,0.73201,2731.6,2731.5,0.00552049]
[1740073221858,0.73201,2731.6,2731.5,0.54420881]
[1740073223050,0.73201,2731.6,2731.5,1.09660881]
[1740073223759,0.73201,2731.6,2731.5,1.09672886]
[1740073223960,0.73201,2731.6,2731.5,1.82875886]
[1740073224165,0.73201,2731.6,2731.5,1.09672886]
[1740073225053,0.73201,2731.6,2731.5,1.82875886]
[1740073225454,6.18548,2731.9,2731.5,1.09672886]
[1740073225649,1.1478,2731.9,2731.6,1.10069508]
[1740073225854,1.87973,2731.9,2731.8,0.73747049]
[1740073226350,0.5889,2731.9,2731.8,0.73747049]
[1740073226556,0.73193,2732.0,2731.9,0.73191]
[1740073226859,0.73737938,2732.1,2732.0,0.7319]
[1740073227061,0.73737938,2732.1,2732.0,1.32602049]
[1740073227658,0.00548938,2732.1,2732.0,5.07208257]
[1740073228458,0.73735938,2732.1,2732.0,5.07208257]
[1740073228661,0.00548938,2732.1,2732.0,5.07208257]
[1740073229655,0.00548938,2732.1,2732.0,4.34018257]
[1740073229858,0.73735938,2732.1,2732.0,0.59412049]
[1740073230264,0.73735938,2732.1,2732.0,1.32602049]
[1740073230960,0.00548938,2732.1,2732.0,1.32602049]
[1740073231260,0.00548938,2732.1,2732.0,4.53382049]
[1740073231654,0.73735938,2732.1,2731.6,0.562]
[1740073231861,0.73195,2731.9,2731.8,0.73193]
[1740073232361,0.73195,2731.9,2731.8,0.00552049]
[1740073233156,1.1378,2732.0,2731.6,0.562]
[1740073233364,0.73198,2731.7,2731.6,0.732]
[1740073233758,0.73198,2731.7,2731.6,0.73752049]
[1740073234163,0.73195,2731.9,2731.8,0.73194]
[1740073234466,0.73195,2731.8,2731.7,0.73748049]
[1740073234858,0.73194,2731.9,2731.8,0.73193]
[1740073235053,0.73194,2731.9,2731.8,0.73745049]
[1740073235260,0.73194,2731.9,2731.8,0.00552049]
[1740073236058,0.73194,2731.9,2731.8,0.73747049]
[1740073236666,1.1378,2732.0,2731.9,0.73193]
[1740073236967,1.8697,2732.0,2731.9,0.73745049]
[1740073239466,0.5807,2732.0,2731.9,0.73745049]
[1740073240268,0.5807,2732.0,2731.9,1.31015049]
[1740073240470,0.00548938,2732.1,2732.0,0.7319]
[1740073240668,0.00548938,2732.1,2732.0,4.48301335]
[1740073241373,0.00548938,2732.1,2732.0,3.75111335]
[1740073241665,0.73735938,2732.1,2732.0,4.48301335]
[1740073242065,0.73735938,2732.1,2732.0,4.48299235]
[1740073242263,0.73735938,2732.1,2732.0,3.94522049]
[1740073242458,0.73735938,2732.1,2732.0,4.48297011]
[1740073243170,0.73735938,2732.1,2732.0,1.27517011]
[1740073243467,0.73735938,2732.1,2732.0,1.27500841]
[1740073243665,0.00548938,2732.1,2732.0,1.27500841]
[1740073245163,0.00548938,2732.1,2732.0,4.48280841]
[1740073246257,0.5478,2732.9,2732.8,0.73168]
[1740073246461,0.5799,2733.2,2733.1,0.00552049]
[1740073246664,0.73158,2733.2,2733.1,0.73712049]
[1740073246866,0.5642,2733.3,2733.1,0.00552049]
[1740073247069,1.29578,2733.3,2733.2,0.73158]
[1740073247265,0.5642,2733.3,2733.1,0.00552049]
[1740073247571,0.73158,2733.2,2733.1,0.00552049]
[1740073250574,0.73158,2733.2,2733.1,0.73712049]
[1740073250872,0.73158,2733.2,2733.1,0.00552049]
[1740073252372,0.5642,2733.3,2733.0,0.00548938]
[1740073252572,1.288,2733.1,2733.0,0.00548938]
[1740073252868,0.73176,2732.5,2732.4,3.2078]
[1740073253873,3.2078,2732.7,2732.2,2.434]
[1740073254172,0.7319,2732.0,2731.9,3.7761]
[1740073254465,0.7319,2732.1,2732.0,0.73741049]
[1740073254866,0.5883,2732.4,2732.0,0.00552049]
[1740073255075,0.5883,2732.4,2732.3,0.73734049]
[1740073255865,0.73178,2732.5,2732.4,0.73177]
[1740073256069,0.73178,2732.5,2732.4,1.32827]
[1740073256368,0.73178,2732.5,2732.4,1.33379049]
[1740073256572,0.73178,2732.5,2732.4,0.60202049]
[1740073257473,0.73178,2732.5,2732.4,1.33381049]
[1740073258070,1.1237,2732.6,2732.2,3.2078]
[1740073258265,0.73179,2732.4,2732.3,0.00552049]
[1740073258469,2.95306,2732.6,2732.2,3.2078]
[1740073258669,0.73179,2732.4,2732.3,0.00552049]
[1740073258974,0.73182,2732.3,2732.2,3.21332049]
[1740073259172,1.29332,2732.3,2732.2,3.21332049]
[1740073259674,1.29332,2732.3,2732.2,3.2078]
[1740073261079,0.7319,2732.0,2731.9,0.5639]
[1740073261267,0.7319,2732.0,2731.9,1.29583]
[1740073261473,0.7319,2732.1,2732.0,0.73188]
[1740073261778,0.7319,2732.1,2732.0,0.00552049]
[1740073262474,0.7319,2732.0,2731.9,3.2078]
[1740073262675,0.73193,2731.9,2731.8,0.73195]
[1740073263072,0.73193,2731.9,2731.8,0.73747049]
[1740073263272,0.73193,2731.9,2731.8,0.00552049]
[1740073263573,0.73193,2731.9,2731.8,0.73747049]
[1740073264572,0.73193,2731.9,2731.8,0.00552049]
[1740073265774,0.73193,2731.9,2731.8,0.73747049]
[1740073265974,0.73193,2731.9,2731.8,0.00552049]
[1740073266170,0.73193,2731.9,2731.8,0.73747049]
[1740073267575,0.00548938,2732.1,2732.0,0.7319]
[1740073267775,0.00548938,2732.1,2732.0,0.73742049]
[1740073267981,0.73735938,2732.1,2732.0,0.73742049]
[1740073270081,0.00548938,2732.1,2732.0,1.27402298]
[1740073270381,0.73735938,2732.1,2732.0,1.2740485]
[1740073270575,0.00548938,2732.1,2732.0,1.27405756]
[1740073270778,0.5724,2732.5,2732.4,0.73179]
[1740073270977,0.5883,2732.7,2732.4,0.00552049]
[1740073271282,1.32001,2732.7,2732.6,0.00552049]
[1740073272781,0.5883,2732.7,2732.4,0.00548938]
[1740073272982,0.73176,2732.5,2732.4,0.00548938]
[1740073273985,0.7319,2732.0,2731.9,3.2078]
[1740073274291,0.7319,2732.0,2731.9,3.21332049]
[1740073274684,0.7319,2732.0,2731.9,3.2078]
[1740073276078,0.73193,2731.9,2731.8,0.5892]
[1740073276484,0.73193,2731.9,2731.8,0.59472049]
[1740073277887,0.5506,2732.1,2731.8,0.59472049]
[1740073278093,36.57593,2733.5,2731.8,0.59472049]
[1740073278094,3.2078,2733.1,2732.0,0.00552049]
[1740073278293,0.73171,2732.7,2732.6,0.00552049]
[1740073278791,0.73176,2732.5,2732.4,41.3751]
[1740073278988,1.82942,2732.5,2731.8,2.434]
[1740073279194,0.5612,2732.4,2732.3,0.00552049]
[1740073279395,1.29299,2732.4,2732.3,0.00552049]
[1740073279613,0.73188,2732.1,2731.9,42.0795]
[1740073279788,0.73188,2732.1,2732.0,1.26908545]
[1740073279987,0.73188,2732.1,2732.0,1.27460594]
[1740073281887,0.73188,2732.1,2732.0,0.54270594]
[1740073282089,0.73188,2732.1,2732.0,0.54330371]
[1740073282295,0.73188,2732.1,2732.0,1.27520371]
[1740073282896,0.73187,2732.1,2732.0,1.27520371]
[1740073283098,0.5961,2732.3,2732.0,0.54330371]
[1740073283393,0.5496,2732.6,2732.2,0.00552049]
[1740073283592,1.1306,2732.8,2732.5,0.00552049]
[1740073283898,1.86228,2732.8,2732.7,0.00552049]
[1740073284295,0.73175,2732.6,2732.4,1.27688]
[1740073284592,0.73175,2732.6,2732.5,0.53781548]
[1740073284798,0.73176,2732.5,2732.4,0.55062049]
[1740073285294,0.73176,2732.5,2732.0,3.2078]
[1740073285295,1.1306,2732.8,2732.0,5.6418]
[1740073285490,0.73184,2732.2,2732.1,0.54353797]
[1740073285695,0.73184,2732.2,2732.1,0.00552049]
[1740073285892,0.73184,2732.2,2732.1,0.54363635]
[1740073286293,1.82942,2732.5,2732.0,3.7462]
[1740073286499,0.73187,2732.1,2732.0,3.75172049]
[1740073286691,0.73187,2732.1,2732.0,4.28993262]
[1740073288001,0.73187,2732.1,2732.0,4.28995147]
[1740073288796,0.73195,2731.8,2731.7,3.2078]
[1740073288997,0.73195,2731.8,2731.7,3.75169908]
[1740073289902,0.585,2732.0,2731.7,3.75169908]
[1740073289903,0.585,2732.0,2731.7,4.48365908]
[1740073290096,0.5956,2732.1,2731.9,0.00552049]
[1740073290288,1.32747,2732.1,2732.0,0.00552049]
[1740073293704,3.2078,2732.6,2732.4,0.73178]
[1740073293892,1.1679,2732.7,2732.4,0.00552049]
[1740073294093,0.73176,2732.5,2732.3,3.2078]
[1740073294293,0.73176,2732.5,2732.4,1.1299]
[1740073294494,0.73176,2732.5,2732.4,1.67331341]
[1740073294694,0.73176,2732.5,2732.4,2.40510341]
[1740073295294,0.73715938,2732.9,2732.4,1.67331341]
[1740073295498,0.73715938,2732.9,2732.8,0.00552049]
[1740073296503,0.00548938,2732.9,2732.6,3.2078]